bitfinex/quotes_BTCUSD_20260104
["timestamp","ask_amount","ask_price","bid_price","bid_amount"]
[1767560681084,0.06572538,91289.0,91284.0,0.01095482]
[1767560681324,0.000999,91285.0,91283.0,0.06572858]
[1767560681538,0.01095434,91288.0,91284.0,0.01095482]
[1767560681957,0.0657261,91288.0,91283.0,0.06572858]
[1767560682149,0.000999,91284.0,91283.0,0.06572858]
[1767560682567,0.0657261,91288.0,91282.0,0.01095506]
[1767560682914,0.06572538,91289.0,91282.0,0.06573016]
[1767560683317,0.01095434,91288.0,91283.0,0.01095494]
[1767560683641,0.01095434,91288.0,91282.0,0.06573016]
[1767560683642,0.01095446,91287.0,91282.0,0.06573016]
[1767560683867,0.02192,91290.0,91287.0,0.10024918]
[1767560684027,0.02192,91294.0,91289.0,0.05477094]
[1767560684228,0.02192,91294.0,91290.0,0.0109541]
[1767560685226,0.02192,91294.0,91290.0,0.0099551]
[1767560685633,0.02192,91294.0,91290.0,0.0647255]
[1767560687718,0.03287362,91294.0,91290.0,0.0099551]
[1767560687923,0.06587473,91293.0,91288.0,0.06572596]
[1767560688124,0.01110594,91293.0,91288.0,0.06572596]
[1767560688465,0.01110594,91293.0,91286.0,0.01095458]
[1767560688669,0.01095398,91291.0,91286.0,0.05643145]
[1767560689011,0.06572326,91292.0,91287.0,0.01095446]
[1767560689220,0.01095398,91291.0,91286.0,0.1112039]
[1767560690334,0.0109541,91290.0,91286.0,0.05643145]
[1767560690540,0.06572417,91291.0,91286.0,0.05643145]
[1767560690708,0.06572417,91291.0,91286.0,0.1112043]
[1767560690912,0.06572417,91291.0,91286.0,0.11116028]
[1767560692069,0.06572417,91291.0,91286.0,0.05638743]
[1767560692222,0.01110594,91293.0,91291.0,0.000999]
[1767560692428,0.06587477,91293.0,91291.0,0.00095498]
[1767560692641,0.06587477,91293.0,91288.0,0.01095434]
[1767560692850,0.01095386,91292.0,91286.0,0.11116033]
[1767560693050,0.01095398,91291.0,91287.0,0.01095446]
[1767560693253,0.06572363,91292.0,91287.0,0.01095446]
[1767560693498,0.06572389,91291.0,91286.0,0.11116033]
[1767560693794,0.06572389,91291.0,91287.0,0.01095446]
[1767560693795,0.01095398,91291.0,91287.0,0.01095446]
[1767560693940,0.01095398,91291.0,91286.0,0.05638743]
[1767560694149,0.01095398,91291.0,91287.0,0.01095446]
[1767560694601,0.01095398,91291.0,91286.0,0.11116026]
[1767560695837,0.06572461,91290.0,91286.0,0.04538885]
[1767560695967,0.0109541,91290.0,91286.0,0.04538885]
[1767560696168,0.06572501,91291.0,91286.0,0.05634343]
[1767560697327,0.0109541,91290.0,91286.0,0.04538885]
[1767560697725,0.06572464,91290.0,91286.0,0.04538885]
[1767560698362,0.0109541,91290.0,91286.0,0.05634343]
[1767560698566,0.06572418,91292.0,91290.0,0.000999]
[1767560698906,0.05476991,91291.0,91290.0,0.000999]
[1767560699116,0.06572389,91291.0,91286.0,0.11111612]
[1767560699309,0.01110594,91293.0,91288.0,0.01095434]
[1767560699592,0.01095386,91292.0,91287.0,0.05643133]
[1767560699884,0.01095386,91292.0,91287.0,0.11120343]
[1767560700103,0.06587486,91293.0,91287.0,0.11120343]
[1767560700265,0.01095386,91292.0,91288.0,0.01095434]
[1767560700445,0.06587486,91293.0,91292.0,0.000999]
[1767560701134,0.06587486,91293.0,91288.0,0.06572602]
[1767560702391,0.0001522,91293.0,91288.0,0.01095434]
[1767560702655,0.07668815,91294.0,91293.0,0.0008468]
[1767560702656,0.08764177,91294.0,91293.0,0.0008468]
[1767560702801,0.06572252,91293.0,91288.0,0.06572561]
[1767560703141,0.01095374,91293.0,91289.0,0.01095422]
[1767560703620,0.01095386,91292.0,91287.0,0.06572656]
[1767560703824,0.02192,91294.0,91289.0,0.06572503]
[1767560704164,0.08764213,91294.0,91289.0,0.01095422]
[1767560704289,0.01095374,91293.0,91288.0,0.06572595]
[1767560704846,0.06572251,91293.0,91288.0,0.06572595]
[1767560705049,0.01095386,91292.0,91288.0,0.01095434]
[1767560705301,0.05477166,91289.0,91284.0,0.01095482]
[1767560705528,0.01095434,91288.0,91284.0,0.05787246]
[1767560705743,0.01095434,91288.0,91284.0,0.04691764]
[1767560705949,0.01095434,91288.0,91284.0,0.05787246]
[1767560706135,0.06572299,91293.0,91287.0,0.05477214]
[1767560706268,0.01095386,91292.0,91288.0,0.01095434]
[1767560706486,0.01095386,91292.0,91287.0,0.06071508]
[1767560706687,0.01095386,91292.0,91288.0,0.01095434]
[1767560706927,0.01095386,91292.0,91287.0,0.06071508]
[1767560707143,0.06572328,91292.0,91287.0,0.06071508]
[1767560707391,0.02192,91294.0,91292.0,0.000846]
[1767560707597,0.03287362,91294.0,91289.0,0.01095422]
[1767560707814,0.03287362,91294.0,91289.0,0.0657251]
[1767560708386,0.01095374,91293.0,91288.0,0.06572557]
[1767560708605,0.08764222,91294.0,91288.0,0.06572557]
[1767560708606,0.08764222,91294.0,91289.0,0.06572528]
[1767560708826,0.01095374,91293.0,91289.0,0.01095422]
[1767560709015,0.08764222,91294.0,91289.0,0.01095422]
[1767560709225,0.01095398,91291.0,91287.0,0.0657257]
[1767560709472,0.01095386,91292.0,91288.0,0.01095434]
[1767560710394,0.06572255,91293.0,91288.0,0.01095434]
[1767560710595,0.06572255,91293.0,91288.0,0.05787198]
[1767560710799,0.03287362,91294.0,91293.0,0.000846]
[1767560710995,0.08764173,91294.0,91289.0,0.01095422]
[1767560711266,0.01095374,91293.0,91288.0,0.06572556]
[1767560711479,0.38686692,91310.0,91285.0,0.04691764]
[1767560711480,0.05476179,91305.0,91299.0,0.01095302]
[1767560711625,0.05476179,91305.0,91293.0,0.00839544]
[1767560711626,0.01195202,91299.0,91294.0,0.01095362]
[1767560711808,0.01195202,91299.0,91295.0,0.0109535]
[1767560711809,0.000999,91299.0,91295.0,0.0109535]
[1767560712014,0.01195202,91299.0,91294.0,0.01095362]
[1767560712237,0.01095302,91299.0,91294.0,0.01095362]
[1767560712456,0.06571822,91299.0,91293.0,0.06572194]
[1767560712701,0.01095314,91298.0,91293.0,0.06572194]
[1767560713066,0.06571822,91299.0,91294.0,0.01095362]
[1767560713277,0.000999,91294.0,91293.0,0.01095374]
[1767560713476,0.01095314,91298.0,91294.0,0.01095362]
[1767560713638,0.06571816,91299.0,91294.0,0.01095362]
[1767560713841,0.01095398,91291.0,91286.0,0.01095458]
[1767560714278,0.06572323,91292.0,91288.0,0.04691764]
[1767560714810,0.01095386,91292.0,91288.0,0.04691764]
[1767560715002,0.01095398,91291.0,91288.0,0.04591864]
[1767560715178,0.0109541,91290.0,91287.0,0.02192]
[1767560715375,0.01095398,91291.0,91287.0,0.02192]
[1767560715633,0.01095398,91291.0,91287.0,0.06883764]
[1767560715808,0.01095398,91291.0,91288.0,0.04691764]
[1767560715980,0.0657242,91291.0,91288.0,0.04691764]
[1767560716176,0.01095398,91291.0,91288.0,0.04691764]
[1767560716953,0.06572322,91292.0,91288.0,0.04691764]
[1767560717239,0.06572219,91294.0,91288.0,0.05787198]
[1767560717438,0.06572219,91294.0,91292.0,0.000999]
[1767560717602,0.06572219,91294.0,91289.0,0.01095422]
[1767560718275,0.01095374,91293.0,91288.0,0.11264318]
[1767560718640,0.06572219,91294.0,91289.0,0.01095422]
[1767560719191,0.06572219,91294.0,91289.0,0.06572533]
[1767560719494,0.01095374,91293.0,91288.0,0.04691764]
[1767560720376,0.06572321,91292.0,91288.0,0.04691764]
[1767560720552,0.01095398,91291.0,91288.0,0.04691764]
[1767560721549,0.01095446,91287.0,91280.0,0.0109553]
[1767560721758,0.01095422,91289.0,91280.0,0.0109553]
[1767560721759,0.0657266,91288.0,91282.0,0.01095506]
[1767560721963,0.01095458,91286.0,91283.0,0.02192]
[1767560722157,0.06572687,91287.0,91283.0,0.02192]
[1767560722368,0.06572687,91287.0,91283.0,0.06883764]
[1767560722575,0.06572687,91287.0,91284.0,0.04691764]
[1767560722994,0.0657266,91288.0,91284.0,0.04691764]
[1767560723410,0.01095434,91288.0,91284.0,0.04691764]
[1767560723912,0.01095446,91287.0,91284.0,0.04691764]
[1767560727315,0.01095434,91288.0,91284.0,0.04691764]
[1767560727516,0.01095422,91289.0,91284.0,0.05787246]
[1767560727712,0.01095434,91288.0,91284.0,0.05787246]
[1767560728227,0.01095422,91289.0,91285.0,0.0109547]
[1767560728389,0.01095422,91289.0,91284.0,0.05787246]
[1767560728597,0.01095434,91288.0,91284.0,0.01095482]
[1767560729066,0.01095422,91289.0,91284.0,0.01095482]
[1767560729293,0.01095434,91288.0,91283.0,0.06883764]
[1767560729631,0.01095434,91288.0,91283.0,0.07979258]
[1767560729830,0.01095422,91289.0,91284.0,0.01095482]
[1767560730246,0.01095434,91288.0,91283.0,0.07979258]
[1767560731065,0.01095434,91288.0,91284.0,0.04868736]
[1767560731934,0.01095338,91296.0,91288.0,0.000999]
[1767560732139,0.01095314,91298.0,91293.0,0.04868736]
[1767560732140,0.01095326,91297.0,91293.0,0.04868736]
[1767560732340,0.01095314,91298.0,91293.0,0.0596411]
[1767560732659,0.01095314,91298.0,91289.0,0.01095422]
[1767560732823,0.0109535,91295.0,91290.0,0.0109541]
[1767560733024,0.01095374,91293.0,91288.0,0.01095434]
[1767560734720,0.01095374,91293.0,91289.0,0.01095422]
[1767560734918,0.01095362,91294.0,91289.0,0.01095422]
[1767560736783,0.0109535,91295.0,91290.0,0.0109541]
[1767560737455,0.0109535,91295.0,91289.0,0.01095422]
[1767560737659,0.01095362,91294.0,91289.0,0.01095422]
[1767560739283,0.01095374,91293.0,91288.0,0.01095434]
[1767560740349,0.01095362,91294.0,91289.0,0.01095422]
[1767560740780,0.00995462,91294.0,91290.0,0.0109541]
[1767560740961,0.01095326,91297.0,91290.0,0.0109541]
[1767560741198,0.01095314,91298.0,91290.0,0.0657241]
[1767560742299,0.01095326,91297.0,91293.0,0.01095374]
[1767560742667,0.01095326,91297.0,91291.0,0.06572351]
[1767560742875,0.01095326,91297.0,91293.0,0.01095374]
[1767560743285,0.01095326,91297.0,91292.0,0.01095386]
[1767560745182,0.01095338,91296.0,91292.0,0.01095386]
[1767560745334,0.01095326,91297.0,91292.0,0.01095386]
[1767560746478,0.01095338,91296.0,91291.0,0.01095398]
[1767560748187,0.000999,91291.0,91289.0,0.01095422]
[1767560748600,0.01095362,91294.0,91289.0,0.01095422]
[1767560750782,0.01095362,91294.0,91289.0,0.00995522]
[1767560753791,0.01095362,91294.0,91289.0,0.01095422]
[1767560754901,0.0109535,91295.0,91290.0,0.0109541]
[1767560755094,0.0109535,91295.0,91294.0,0.000999]
[1767560755326,0.01095362,91294.0,91289.0,0.01095422]
[1767560755714,0.0109535,91295.0,91290.0,0.0109541]
[1767560757426,0.0109535,91295.0,91291.0,0.01095398]
[1767560757578,0.01095338,91296.0,91291.0,0.01095398]
[1767560760972,0.0109535,91295.0,91290.0,0.0109541]
[1767560761413,0.01095362,91294.0,91289.0,0.01095422]
[1767560761588,0.01095362,91294.0,91290.0,0.0109541]
[1767560761814,0.01095362,91294.0,91289.0,0.01095422]
[1767560761815,0.01095374,91293.0,91289.0,0.01095422]
[1767560762021,0.01095398,91291.0,91288.0,0.02192]
[1767560762183,0.04993706,91293.0,91288.0,0.02192]
[1767560762556,0.0608908,91293.0,91288.0,0.02192]
[1767560762750,0.0608908,91293.0,91288.0,0.03287434]
[1767560762751,0.06089092,91292.0,91288.0,0.03287434]
[1767560762988,0.04993706,91292.0,91288.0,0.03287434]
[1767560763538,0.01095374,91293.0,91288.0,0.03287434]
[1767560764727,0.01095386,91292.0,91288.0,0.02192]
[1767560766224,0.06089092,91292.0,91288.0,0.02192]
[1767560766857,0.04993706,91292.0,91288.0,0.03287434]
[1767560767070,0.01095374,91293.0,91288.0,0.03287434]
[1767560767233,0.0608908,91293.0,91288.0,0.03287434]
[1767560768596,0.01095374,91293.0,91288.0,0.03287434]
[1767560771192,0.01095386,91292.0,91288.0,0.03287434]
[1767560771392,0.01095374,91293.0,91288.0,0.03287434]
[1767560771760,0.01095386,91292.0,91288.0,0.03287434]
[1767560774773,0.01095386,91292.0,91288.0,0.02192]
[1767560775676,0.01095386,91292.0,91287.0,0.01095446]
[1767560776764,0.0109535,91295.0,91292.0,0.000999]
[1767560776965,0.01095362,91294.0,91289.0,0.01095422]
[1767560777567,0.06571927,91298.0,91290.0,0.0109541]
[1767560777723,0.01095314,91298.0,91294.0,0.01195262]
[1767560777949,0.01095314,91298.0,91294.0,0.01095362]
[1767560778153,0.01095302,91299.0,91294.0,0.01095362]
[1767560778752,0.0109529,91300.0,91295.0,0.0109535]
[1767560779188,0.01095302,91299.0,91294.0,0.01095362]
[1767560779791,0.01095302,91299.0,91295.0,0.0109535]
[1767560781281,0.01095302,91299.0,91294.0,0.01095362]
[1767560781482,0.08763609,91302.0,91295.0,0.0109535]
[1767560781922,0.01095278,91301.0,91295.0,0.0109535]
[1767560782659,0.0109529,91300.0,91296.0,0.01095338]
[1767560783002,0.01095278,91301.0,91296.0,0.01095338]
[1767560784928,0.0109529,91300.0,91296.0,0.01095338]
[1767560785231,0.01095302,91299.0,91294.0,0.01095362]
[1767560785434,0.01095302,91299.0,91295.0,0.0109535]
[1767560786801,0.0109529,91300.0,91295.0,0.0109535]
[1767560788084,0.01095302,91299.0,91295.0,0.0108636]
[1767560788252,0.02192,91302.0,91295.0,0.06563108]
[1767560788458,0.02192,91301.0,91299.0,0.01195202]
[1767560788599,8.671e-05,91305.0,91302.0,0.01095266]
[1767560788803,0.01095074,91318.0,91309.0,0.01095182]
[1767560789024,0.0109511,91315.0,91305.0,0.06571365]
[1767560789242,0.01095158,91311.0,91304.0,0.01095242]
[1767560789481,0.01095194,91308.0,91303.0,0.01095254]
[1767560789677,0.01095218,91306.0,91302.0,0.04738522]
[1767560790174,0.01095218,91306.0,91302.0,0.05833788]
[1767560790348,0.01095218,91306.0,91302.0,0.04738522]
[1767560791294,0.01095206,91307.0,91302.0,0.05833788]
[1767560793698,0.06571136,91309.0,91307.0,0.000999]
[1767560793699,0.01095182,91309.0,91307.0,0.000999]
[1767560793903,0.06571072,91310.0,91307.0,0.000999]
[1767560794101,0.01095134,91313.0,91307.0,0.000999]
[1767560794262,0.05475617,91314.0,91306.0,0.01095218]
[1767560794599,0.01095134,91313.0,91309.0,0.01095182]
[1767560794841,0.0109511,91315.0,91309.0,0.01095182]
[1767560795017,0.01095122,91314.0,91308.0,0.01095194]
[1767560795218,0.0657064,91316.0,91308.0,0.01095194]
[1767560795219,0.00035969,91318.0,91310.0,0.0109517]
[1767560795422,0.01095086,91317.0,91309.0,0.01095182]
[1767560795649,0.01131043,91318.0,91312.0,0.01095146]
[1767560796145,0.01031143,91318.0,91313.0,0.01095134]
[1767560796287,0.01031143,91318.0,91312.0,0.01095146]
[1767560796484,0.01031143,91318.0,91311.0,0.01095158]
[1767560796710,0.01095086,91317.0,91312.0,0.01095146]
[1767560796924,0.0109505,91320.0,91315.0,0.0109511]
[1767560797134,0.01095062,91319.0,91314.0,0.01095122]
[1767560797368,0.01102923,91320.0,91317.0,0.01095086]
[1767560797369,7.873e-05,91320.0,91317.0,0.01095086]
[1767560797534,7.873e-05,91320.0,91316.0,0.01095098]
[1767560798583,7.873e-05,91320.0,91317.0,0.01095086]
[1767560799126,7.873e-05,91320.0,91316.0,0.01095098]
[1767560799351,7.873e-05,91320.0,91317.0,0.0579911]
[1767560799532,7.873e-05,91320.0,91317.0,0.04704024]
[1767560799859,7.873e-05,91320.0,91316.0,0.01095098]
[1767560800049,7.873e-05,91320.0,91317.0,0.01095086]
[1767560800351,0.00023032,91321.0,91317.0,0.01095086]
[1767560800555,0.01095062,91319.0,91313.0,0.01095134]
[1767560800756,0.01095074,91318.0,91313.0,0.01095134]
[1767560800957,0.000999,91313.0,91312.0,0.01095146]
[1767560801159,0.0109511,91315.0,91308.0,0.03287194]
[1767560801335,0.05475654,91314.0,91309.0,0.02192]
[1767560801535,0.01095146,91312.0,91309.0,0.02192]
[1767560801859,0.04766983,91321.0,91304.0,0.06571397]
[1767560801860,0.01095218,91306.0,91304.0,0.02192]
[1767560802005,0.01095218,91306.0,91304.0,0.02199873]
[1767560802211,0.01095206,91307.0,91304.0,0.02199873]
[1767560802846,0.01095182,91309.0,91304.0,0.02199873]
[1767560803228,0.01095194,91308.0,91304.0,0.02199873]
[1767560803958,0.01095194,91308.0,91304.0,7.873e-05]
[1767560803959,0.06571296,91307.0,91304.0,7.873e-05]
[1767560804924,0.01095206,91307.0,91304.0,7.873e-05]
[1767560807783,0.06571279,91307.0,91304.0,7.873e-05]
[1767560807977,0.04766983,91305.0,91304.0,7.873e-05]
[1767560808207,0.01095314,91298.0,91293.0,0.01095374]
[1767560808407,0.01095314,91298.0,91293.0,0.03296045]
[1767560808561,0.01095326,91297.0,91293.0,0.02200671]
[1767560809109,0.01095314,91298.0,91294.0,0.01095362]
[1767560809339,0.04766983,91301.0,91298.0,0.000999]
[1767560809492,0.04766983,91301.0,91298.0,0.01195214]
[1767560809810,0.03366983,91299.0,91296.0,0.01095338]
[1767560809991,0.03362487,91299.0,91293.0,0.03296045]
[1767560810178,0.05862261,91301.0,91294.0,0.01095362]
[1767560810378,0.0109529,91300.0,91294.0,0.01095362]
[1767560810588,0.05862261,91301.0,91295.0,0.05476751]
[1767560810782,0.04766983,91301.0,91296.0,0.01095338]
[1767560811214,0.06571645,91302.0,91296.0,0.01095338]
[1767560811372,0.01095266,91302.0,91296.0,0.01095338]
[1767560812150,0.01095266,91302.0,91297.0,0.01095326]
[1767560812979,0.01095278,91301.0,91296.0,0.01095338]
[1767560813122,0.01095266,91302.0,91296.0,0.01095338]
[1767560814100,0.01095278,91301.0,91296.0,0.01095338]
[1767560814357,0.0109529,91300.0,91294.0,0.01095362]
[1767560814532,0.01095314,91298.0,91293.0,0.01104045]
[1767560814733,0.01095338,91296.0,91293.0,8.671e-05]
[1767560814951,0.0657208,91296.0,91293.0,8.671e-05]
[1767560815144,0.05476797,91295.0,91293.0,8.671e-05]
[1767560817030,0.054723,91295.0,91293.0,8.671e-05]
[1767560820195,0.01095374,91293.0,91286.0,0.05477252]
[1767560820402,0.00995474,91293.0,91288.0,0.01095434]
[1767560821002,0.01095386,91292.0,91285.0,0.05477315]
[1767560821203,0.01095386,91292.0,91284.0,0.02192]
[1767560821204,0.01095446,91287.0,91284.0,0.02192]
[1767560821415,0.01095446,91287.0,91279.0,0.0001522]
[1767560821416,0.01095494,91283.0,91279.0,0.0001522]
[1767560821652,0.01195382,91284.0,91279.0,0.0001522]
[1767560822029,0.01095494,91283.0,91279.0,0.0001522]
[1767560822479,0.06573075,91282.0,91279.0,0.0001522]
[1767560823206,0.05477646,91281.0,91279.0,2e-07]
[1767560823442,0.06573075,91282.0,91279.0,2e-07]
[1767560824133,0.01095506,91282.0,91279.0,2e-07]
[1767560824855,0.01095494,91283.0,91282.0,0.000152]
[1767560825047,0.06572936,91284.0,91279.0,2e-07]
[1767560825048,0.06573037,91282.0,91279.0,2e-07]
[1767560825565,0.01095506,91282.0,91279.0,2e-07]
[1767560827159,0.01095494,91283.0,91279.0,2e-07]
[1767560829221,0.01095506,91282.0,91279.0,2e-07]
[1767560829647,0.01095494,91283.0,91279.0,2e-07]
[1767560829820,0.01095506,91282.0,91279.0,2e-07]
[1767560834836,0.01095458,91286.0,91279.0,2e-07]
[1767560834982,0.0109547,91285.0,91279.0,2e-07]
[1767560835387,0.03287422,91289.0,91281.0,0.01095518]
[1767560835583,0.01095434,91288.0,91281.0,0.06568661]
[1767560836716,0.01095446,91287.0,91283.0,0.01095494]
[1767560836912,0.01095446,91287.0,91283.0,0.0109109]
[1767560837762,0.01095446,91287.0,91282.0,0.01095506]
[1767560838812,0.01095446,91287.0,91283.0,0.01095494]
[1767560839149,0.03287422,91289.0,91283.0,0.01095494]
[1767560839352,0.01095422,91289.0,91283.0,0.01095494]
[1767560839571,0.02192,91288.0,91283.0,0.01095494]
[1767560840187,0.02192,91288.0,91284.0,0.01095482]
[1767560840789,0.02192,91288.0,91285.0,0.0109547]
[1767560842123,0.02192,91288.0,91284.0,0.01095482]
[1767560842916,0.02192,91288.0,91285.0,0.0109547]
[1767560844104,0.02192,91290.0,91288.0,0.01095434]
[1767560845914,0.000999,91288.0,91285.0,0.0109547]
[1767560846315,0.02192,91290.0,91286.0,0.01095458]
[1767560849530,0.0328741,91290.0,91285.0,0.0109547]
[1767560850811,0.02192,91290.0,91287.0,0.01095446]
[1767560855204,0.000999,91287.0,91286.0,0.01095458]
[1767560855417,0.01095386,91292.0,91287.0,0.01095446]
[1767560856440,0.02192,91295.0,91282.0,0.06572999]
[1767560856441,0.01195346,91287.0,91282.0,0.06572999]
[1767560856594,0.000999,91287.0,91284.0,0.01095482]
[1767560857012,0.01095422,91289.0,91284.0,0.01095482]
[1767560857918,0.01095422,91289.0,91285.0,0.0109547]
[1767560858097,0.01095422,91289.0,91284.0,0.01095482]
[1767560861429,0.06572461,91290.0,91285.0,0.0109547]
[1767560862030,0.0109541,91290.0,91285.0,0.0109547]
[1767560862934,0.05476882,91293.0,91287.0,0.01095446]
[1767560863131,0.01095362,91294.0,91290.0,0.000999]
[1767560863656,0.01095362,91294.0,91288.0,0.01095434]
[1767560864196,0.01095386,91292.0,91288.0,0.01095434]
[1767560864739,0.01095374,91293.0,91288.0,0.01095434]
[1767560865739,0.01095386,91292.0,91287.0,0.01095446]
[1767560869038,0.01095398,91291.0,91286.0,0.06572711]
[1767560870131,0.0109541,91290.0,91286.0,0.01095458]
[1767560870295,0.0109541,91290.0,91285.0,0.0109547]
[1767560870473,0.0109541,91290.0,91286.0,0.01095458]
[1767560870678,0.01095398,91291.0,91286.0,0.01095458]
[1767560873767,0.0109541,91290.0,91285.0,0.0109547]
[1767560874992,0.01095434,91288.0,91283.0,0.01095494]
[1767560875676,0.01095434,91288.0,91284.0,0.01095482]
[1767560875870,0.01095422,91289.0,91284.0,0.01095482]
[1767560880922,0.01095434,91288.0,91284.0,0.01095482]
[1767560881146,0.01095434,91288.0,91283.0,0.01095494]
[1767560881432,0.01095422,91289.0,91284.0,0.01095482]
[1767560881648,0.0109541,91290.0,91284.0,0.06572892]
[1767560882331,0.01095422,91289.0,91283.0,0.01095494]
[1767560882496,0.01095422,91289.0,91285.0,0.0109547]
[1767560882696,0.01095422,91289.0,91284.0,0.01095482]
[1767560883132,0.01095422,91289.0,91285.0,0.0109547]
[1767560883279,0.0109541,91290.0,91285.0,0.0109547]
[1767560884971,0.01095422,91289.0,91284.0,0.01095482]
[1767560885852,0.01095434,91288.0,91282.0,0.01095506]
[1767560886031,0.01095446,91287.0,91282.0,0.01095506]
[1767560886235,0.01095446,91287.0,91283.0,0.01095494]
[1767560886435,0.01095446,91287.0,91282.0,0.01095506]
[1767560886619,0.01095446,91287.0,91283.0,0.01095494]
[1767560887002,0.0109541,91290.0,91287.0,0.000999]
[1767560887240,0.0109541,91290.0,91286.0,0.01095458]
[1767560887418,0.01095398,91291.0,91286.0,0.01095458]
[1767560887658,0.01095386,91292.0,91287.0,0.01095446]
[1767560889301,0.01095398,91291.0,91286.0,0.01095458]
[1767560891110,0.01095398,91291.0,91287.0,0.01095446]
[1767560891246,0.01095386,91292.0,91291.0,0.000999]
[1767560891458,0.01095386,91292.0,91288.0,0.01095434]
[1767560891959,0.01095398,91291.0,91286.0,0.01095458]
[1767560892160,0.06572294,91293.0,91287.0,0.01095446]
[1767560892161,0.01095374,91293.0,91287.0,0.01095446]
[1767560892473,0.01095398,91291.0,91286.0,0.01095458]
[1767560894026,0.01095386,91292.0,91287.0,0.01095446]
[1767560894373,0.01095446,91287.0,91281.0,0.01095518]
[1767560894597,0.0109541,91290.0,91287.0,0.000999]
[1767560895049,0.01095422,91289.0,91283.0,0.01095494]
[1767560895408,0.01095422,91289.0,91284.0,0.01095482]
[1767560896127,0.01095434,91288.0,91283.0,0.01095494]
[1767560896511,0.01095434,91288.0,91284.0,0.01095482]
[1767560897755,0.01095422,91289.0,91284.0,0.01095482]
[1767560899351,0.01095434,91288.0,91283.0,0.01095494]
[1767560899658,0.01095422,91289.0,91284.0,0.01086488]
[1767560900296,0.01095422,91289.0,91285.0,0.0109547]
[1767560900632,0.0109541,91290.0,91285.0,0.0109547]
[1767560900837,0.01095422,91289.0,91285.0,0.0109547]
[1767560901252,0.0109541,91290.0,91285.0,0.0109547]
[1767560901991,0.01095398,91291.0,91286.0,0.01095458]
[1767560905842,0.06572361,91292.0,91287.0,0.01095446]
[1767560906693,0.11502526,91292.0,91284.0,0.01086488]
[1767560906814,0.01095434,91288.0,91284.0,0.01086488]
[1767560907564,0.01095386,91292.0,91288.0,0.000999]
[1767560907769,0.01095398,91291.0,91288.0,0.000999]
[1767560908268,0.01095422,91289.0,91284.0,0.01095482]
[1767560910126,0.01095434,91288.0,91284.0,0.01095482]
[1767560910632,0.06572421,91291.0,91288.0,0.000999]
[1767560910908,0.0109541,91290.0,91286.0,0.01095458]
[1767560911858,0.01095374,91293.0,91287.0,0.01095446]
[1767560912026,0.01095374,91293.0,91290.0,0.000999]
[1767560912226,0.01095374,91293.0,91290.0,0.00090907]
[1767560912390,0.01095374,91293.0,91288.0,0.01095434]
[1767560914086,0.01095386,91292.0,91288.0,0.01095434]
[1767560914440,0.01095386,91292.0,91287.0,0.01095446]
[1767560916126,0.0109529,91300.0,91295.0,0.0109535]
[1767560916462,0.01095266,91302.0,91298.0,0.01095314]
[1767560916761,0.06571501,91304.0,91298.0,0.01095314]
[1767560916762,0.02192,91301.0,91298.0,0.01095314]
[1767560916976,0.04577764,91309.0,91298.0,0.01095314]
[1767560916977,0.04577764,91305.0,91300.0,0.0109529]
[1767560917179,0.01110358,91311.0,91304.0,0.01095242]
[1767560917308,0.0109517,91310.0,91305.0,0.0118613]
[1767560917740,0.0109517,91310.0,91305.0,0.0109523]
[1767560918144,0.01110358,91311.0,91307.0,0.01095206]
[1767560918145,0.000152,91311.0,91307.0,0.01095206]
[1767560918339,0.04592964,91311.0,91308.0,0.01095194]
[1767560919987,9e-05,91308.0,91306.0,0.01095218]
[1767560920270,0.04577764,91308.0,91306.0,0.01095218]
[1767560920923,0.04577764,91308.0,91306.0,0.06571304]
[1767560921073,0.04577764,91310.0,91308.0,0.01095194]
[1767560921511,0.000152,91311.0,91308.0,0.01095194]
[1767560922108,0.000152,91311.0,91307.0,0.01095206]
[1767560922287,0.01115872,91311.0,91306.0,0.06571304]
[1767560922630,0.01115872,91311.0,91306.0,0.01095218]
[1767560924628,0.0109517,91310.0,91306.0,0.01095218]
[1767560925642,0.01115872,91311.0,91306.0,0.01095218]
[1767560926044,0.0109517,91310.0,91306.0,0.01095218]
[1767560926436,0.01095182,91309.0,91304.0,0.01095242]
[1767560926765,0.0109517,91310.0,91305.0,0.0109523]
[1767560928325,0.09864842,91373.0,91305.0,0.0109523]
[1767560928326,0.01095098,91316.0,91310.0,0.000998]
[1767560928528,0.00035971,91316.0,91313.0,0.01095134]
[1767560928778,0.01114978,91326.0,91319.0,0.01095062]
[1767560928989,0.01095026,91322.0,91316.0,0.01095098]
[1767560929992,0.01095026,91322.0,91317.0,0.01095086]
[1767560930177,0.01095038,91321.0,91316.0,0.01095098]
[1767560930376,0.06570071,91324.0,91317.0,0.01095086]
[1767560930578,0.01095002,91324.0,91321.0,0.000998]
[1767560930792,0.01095026,91322.0,91318.0,0.01095074]
[1767560930998,0.01095002,91324.0,91319.0,0.01095062]
[1767560931226,0.06595422,91326.0,91320.0,0.0109505]
[1767560931227,0.02192,91323.0,91320.0,0.0109505]
[1767560931425,0.02083388,91323.0,91320.0,0.0109505]
[1767560931603,0.00988386,91323.0,91320.0,0.06570259]
[1767560931990,0.00988386,91323.0,91320.0,0.0109505]
[1767560932182,0.00988386,91323.0,91319.0,0.01095062]
[1767560932385,0.00988386,91323.0,91319.0,0.01081241]
[1767560932587,0.0109499,91325.0,91320.0,0.0109505]
[1767560933024,0.01095002,91324.0,91319.0,0.01095062]
[1767560933461,0.0109499,91325.0,91320.0,0.0109505]
[1767560933633,0.01086178,91325.0,91320.0,0.0109505]
[1767560934297,0.01095002,91324.0,91319.0,0.01095062]
[1767560934510,0.01095014,91323.0,91318.0,0.01095074]
[1767560934975,0.01095026,91322.0,91314.0,0.06570706]
[1767560935181,0.000999,91318.0,91315.0,0.0109511]
[1767560935355,0.01095038,91321.0,91316.0,0.01095098]
[1767560936281,0.000999,91316.0,91315.0,0.0109511]
[1767560936468,0.01095038,91321.0,91316.0,0.01095098]
[1767560937185,0.0109505,91320.0,91315.0,0.0109511]
[1767560937549,0.01095038,91321.0,91316.0,0.01095098]
[1767560937754,0.01095026,91322.0,91316.0,0.01095098]
[1767560938092,0.01095038,91321.0,91316.0,0.01095098]
[1767560938331,0.01095026,91322.0,91317.0,0.01095086]
[1767560938703,0.01095038,91321.0,91317.0,0.01095086]
[1767560939265,0.01095026,91322.0,91312.0,0.07200081]
[1767560939803,0.01095026,91322.0,91314.0,0.06570682]
[1767560940006,0.01095026,91322.0,91316.0,0.01095098]
[1767560940169,0.06570133,91323.0,91317.0,0.01095086]
[1767560940506,0.01095026,91322.0,91317.0,0.01095086]
[1767560941093,0.000999,91317.0,91314.0,0.01095122]
[1767560941513,0.0109505,91320.0,91315.0,0.0109511]
[1767560941874,0.01095038,91321.0,91316.0,0.01095098]
[1767560942615,0.01095014,91323.0,91316.0,0.01095098]
[1767560942822,0.01095014,91323.0,91317.0,0.01095086]
[1767560943002,0.000999,91317.0,91316.0,0.01095098]
[1767560943196,0.0109505,91320.0,91315.0,0.06570626]
[1767560943403,0.01095038,91321.0,91316.0,0.01095098]
[1767560943566,0.0109505,91320.0,91315.0,0.0109511]